Cogmind - Beta 13 @@@ ROGUE MODE // 2024.04.15 @ 21:29:41 Player: Bace Troncons Result: Destroyed by G-34 Mercenary with Small Laser Performance ------------- Evolutions (1) 500 Regions Visited (3) 600 Robots Destroyed (35) 175 Value Destroyed (869) 869 Prototype IDs (3) 60 Alien Tech Used (0) 0 Bonus (25) 25 TOTAL SCORE: 2229 Bonus ------- Follower Combat Kills 25 Cogmind --------- Core Integrity 0/400 Matter 50/300 Energy 98/100 System Corruption 6% Temperature Warm (102) Movement Core (750) Ox14 Location -9/Storage Parts ------- > --- POWER (1) -------- (None) > --- PROPULSION (2) --- (None) > --- UTILITY (4) ------ High-capacity Storage Unit Signal Interpreter > --- WEAPON (2) ------- Improved Light Cannon > --- INVENTORY (20) --- Aluminum Leg Small Storage Unit Signal Interpreter Terrain Scanner Salvage Targeting Computer Assault Rifle Heavy Assault Rifle Datajack Peak State ------------ > --- POWER ------------ Light Ion Engine > --- PROPULSION ------- Aluminum Leg Aluminum Leg > --- UTILITY ---------- High-capacity Storage Unit Medium Matter Pod Improved Terrain Scanner Recalibrator > --- WEAPON ----------- Assault Rifle EMP Blaster > --- INVENTORY -------- Light Ion Engine VTOL Module Small Storage Unit Signal Interpreter Terrain Scanner Hacking Suite Assault Rifle Light Assault Rifle Light Cannon Datajack [Rating: 16] Favorites ----------- Power Light Ion Engine Engine Light Ion Engine Power Core Light Nuclear Core Propulsion Light Treads Treads Light Treads Leg Aluminum Leg Utility High-capacity Storage Unit Device Improved Terrain Scanner Storage High-capacity Storage Unit Processor Signal Interpreter Hackware Hacking Suite Protection Medium Armor Plating Weapon Assault Rifle Ballistic Gun Assault Rifle Ballistic Cannon Light Cannon Launcher Grenade Launcher Special Melee Weapon Datajack Build | -11 -10 -9 -9 ------- Run | Yrd Mat Mat Sto Slots Evolved 2 | . . 2 . Power . | . . . . Propulsion . | . . . . Utility 2 | . . 2 . Weapon . | . . . . Parts Attached 36 | 4 10 14 8 Power 5 | 1 . 3 1 Engine 4 | 1 . 2 1 Core 1 | . . 1 . Reactor . | . . . . Propulsion 9 | 2 2 3 2 Treads 4 | 2 . 1 1 Leg 5 | . 2 2 1 Wheel . | . . . . Hover . | . . . . Flight . | . . . . Utility 8 | 1 2 4 1 Device 2 | . . 2 . Storage 3 | 1 2 . . Processor 1 | . . 1 . Hackware 1 | . . . 1 Protection 1 | . . 1 . Artifact . | . . . . Weapon 14 | . 6 4 4 Energy Gun . | . . . . Energy Cannon . | . . . . Ballistic Gun 5 | . 3 2 . Ballistic Cannon 4 | . . 1 3 Launcher 3 | . 2 1 . Special Weapon . | . . . . Impact Weapon . | . . . . Slashing Weapon . | . . . . Piercing Weapon . | . . . . Special Melee Weapon 2 | . 1 . 1 Unidentified Prototypes . | . . . . Parts Lost 22 | . 4 10 8 Power 3 | . . 2 1 Propulsion 7 | . 2 2 3 Utility 4 | . . 2 2 Weapon 8 | . 2 4 2 Highest Loss Streak 8 | . 3 5 8 To Critical Strikes . | . . . . Average Slot Usage (%) 91 | . 96 88 75 Engine 8 | . 14 4 6 Core 3 | . . 6 . Treads 13 | . 25 2 1 Leg 8 | . 1 14 18 Device 5 | . . 10 6 Storage 21 | . 26 18 11 Processor 3 | . . 6 11 Protection 1 | . . 3 . Ballistic Gun 13 | . 15 13 . Ballistic Cannon 4 | . . 7 11 Launcher 5 | . 11 . . Naked Turns . | . . . . Heaviest Build 59 | 8 50 59 52 Greatest Support 40 | 40 40 20 20 Greatest Overweight (x) 5 | . 2 5 2 Average Overweight (x) 1 | . . 2 2 Largest Inventory Capacity 20 | 8 20 20 20 Average Capacity 18 | 7 17 20 20 Most Carried 15 | 5 12 15 13 Average Carried 10 | 4 9 11 9 Final Capacity 20 | 8 20 20 20 Final Carried 14 | 5 9 14 8 Class Distribution -------------------- 100% | Mutant Dominant Class ---------------- Mutant | -10/Materials Mutant | -9/Materials Mutant | -9/Storage Resources | -11 -10 -9 -9 ----------- Run | Yrd Mat Mat Sto Matter Collected 893 | 236 345 312 . Remotely . | . . . . Salvage Created 789 | . 375 345 69 Parts 63 | . 26 35 2 Haulers Intercepted 1 | . 1 . . Recyclers Shooed 2 | . 2 . . Parts Field Recycled . | . . . . Retrieved Matter . | . . . . Parts Self-Destructed . | . . . . Prevented . | . . . . Kills | -11 -10 -9 -9 ------- Run | Yrd Mat Mat Sto Combat Hostiles Destroyed 25 | . 10 12 3 Guns 7 | . 3 4 . Cannons 9 | . . 6 3 AOE 9 | . 7 2 . Classes Destroyed 10 | . 8 1 1 Builder 2 | . 2 . . Hauler 1 | . 1 . . Recycler 1 | . 1 . . Mechanic 1 | . 1 . . Operator 1 | . 1 . . Watcher 4 | . 2 2 . Swarmer 9 | . 3 6 . Grunt 13 | . 7 5 1 Brawler 2 | . . . 2 Sentry 1 | . . 1 . Best Kill Streak 7 | . 7 4 3 Combat Bots Only 5 | . 5 4 3 Max Kills in Single Turn 3 | . 3 2 1 Gunslinging . | . . . . Exploded 3 | . 3 2 . Melee . | . . . . Uniques/NPCs Destroyed . | . . . . Combat | -11 -10 -9 -9 -------- Run | Yrd Mat Mat Sto Hostile Shots Fired 302 | . 72 129 101 Missed 79 | . 19 35 25 Damage Taken 2822 | . 640 1113 1069 Core 521 | . 118 156 247 Absorbed by Shields . | . . . . Regen/Repaired (Parts) 142 | . . 142 . Core Remaining (%) 76 | 100 52 . . Volleys Fired 100 | . 52 32 16 Largest 2 | . 2 2 2 Hottest 78 | . 50 58 78 Shots Fired 135 | . 58 52 25 Gun 45 | . 25 20 . Cannon 51 | . . 26 25 Launcher 39 | . 33 6 . Special . | . . . . Kinetic 96 | . 25 46 25 Thermal . | . . . . Explosive 33 | . 33 . . Electromagnetic 6 | . . 6 . Robot Hit Streak 8 | . 7 5 8 Robot Miss Streak 3 | . 3 3 2 Penetration Max . | . . . . Secondary Targets . | . . . . Shots Hit Robots 84 | . 37 28 19 Core Hits 65 | . 40 18 7 Critical Kills 1 | . 1 . . Critical Parts Destroyed . | . . . . Critical Strikes 4 | . 1 1 2 Destroy 1 | . 1 . . Blast 3 | . . 1 2 Melee Attacks 3 | . 3 . . Impact . | . . . . Slashing . | . . . . Piercing . | . . . . Sneak Attacks . | . . . . Combat Hostiles . | . . . . Follow-up Attacks . | . . . . Damage Inflicted 2683 | . 1618 615 450 Guns 367 | . 212 155 . Cannons 688 | . . 238 450 Explosions 1628 | . 1406 222 . Melee . | . . . . Ramming . | . . . . Kinetic 1055 | . 212 393 450 Thermal 39 | . . 39 . Explosive 1406 | . 1406 . . Electromagnetic 183 | . . 183 . Impact . | . . . . Slashing . | . . . . Piercing . | . . . . Highest Corruption 6 | . . . 6 Average Corruption 5 | . . . 5 Corruption Purged . | . . . . Corruption Blocked . | . . . . Effects 1 | . . . 1 Message Errors 1 | . . . 1 Overload Shots . | . . . . Overflow Damage 46 | . 46 . . Projectiles . | . . . . Explosions 46 | . 46 . . Melee . | . . . . Knockbacks 5 | . . 3 2 Impact . | . . . . Kinetic 4 | . . 3 1 Secondary 1 | . . . 1 Self-Inflicted Damage 69 | . 69 . . Shots 4 | . 4 . . Rammed . | . . . . Targets Rammed . | . . . . Kicked . | . . . . Crushed . | . . . . Highest Temperature 96 | . 8 15 96 Average Temperature 16 | . 3 5 32 Received Heat Transfer 1209 | . 279 414 516 Siege Activations . | . . . . Robots Corrupted . | . . . . Combat Hostiles . | . . . . Parts Fried . | . . . . Impact Corruptions . | . . . . Robots Melted . | . . . . Combat Hostiles . | . . . . Parts Melted . | . . . . Heat Transferred 50 | . . 50 . Parts Sabotaged . | . . . . Parts Stolen . | . . . . Parts Stripped . | . . . . Power Chain Reactions 1 | . . 1 . Alert | -11 -10 -9 -9 ------- Run | Yrd Mat Mat Sto Peak Influence 358 | . 358 227 40 Initial 150 | . . 150 33 Average 101 | . 111 104 25 Maximum Alert Level 1 | . 1 1 . Low Security (%) 83 | 100 65 97 100 Level 1 16 | . 34 2 . Level 2 . | . . . . Level 3 . | . . . . Level 4 . | . . . . Level 5 . | . . . . High Security . | . . . . Max Security . | . . . . Squads Dispatched 5 | . 1 1 3 Investigation 2 | . 1 1 . Extermination . | . . . . Reinforcement . | . . . . Assault 2 | . . . 2 Garrison 1 | . . . 1 Intercept . | . . . . Searches Triggered . | . . . . Construction Impeded . | . . . . Haulers Reinforced . | . . . . Active Scanning Responses . | . . . . Cargo Convoy Interrupts . | . . . . Stealth | -11 -10 -9 -9 --------- Run | Yrd Mat Mat Sto Distress Signals 5 | . 1 4 . Communications Jammed . | . . . . Distress Signals . | . . . . Times Spotted 53 | . 17 25 11 Peak Tracking Total 9 | . 6 5 9 Tactical Retreats 3 | . 1 2 . Traps | -11 -10 -9 -9 ------- Run | Yrd Mat Mat Sto Traps Triggered 1 | . 1 . . Indirectly . | . . . . Trap Hack Attempts . | . . . . Triggered . | . . . . Disarmed . | . . . . Reprogrammed . | . . . . Reused . | . . . . Traps Extracted . | . . . . Installed . | . . . . Triggered . | . . . . Machines | -11 -10 -9 -9 ---------- Run | Yrd Mat Mat Sto Machines Disabled 7 | . 7 . . Max in Single Turn 1 | . 1 . . Machines Repaired . | . . . . Machines Dismantled . | . . . . Machines Sabotaged . | . . . . Overloaded Fab Kills . | . . . . Hacking | -11 -10 -9 -9 --------- Run | Yrd Mat Mat Sto Machines Accessed 6 | . 4 2 . Terminals 3 | . 3 . . Fabricators . | . . . . Repair Stations 1 | . . 1 . Recycling Units 1 | . 1 . . Scanalyzers 1 | . . 1 . Garrison Access . | . . . . Total Hacks 22 | . 9 13 . Successful 17 | . 7 10 . Failed 5 | . 2 3 . Catastrophic . | . . . . Database Lockouts . | . . . . Manual . | . . . . Terminals 8 | . 8 . . Fabricators . | . . . . Repair Stations 7 | . . 7 . Recycling Units 1 | . 1 . . Scanalyzers 6 | . . 6 . Garrison Access . | . . . . Terminal Hacks 6 | . 6 . . Record 1 | . 1 . . Prototype ID Bank 2 | . 2 . . Scanalyzer Index 1 | . 1 . . Hauler Manifests 2 | . 2 . . Fabricator Hacks . | . . . . Repair Station Hacks 4 | . . 4 . Scan Component 2 | . . 2 . Repair 2 | . . 2 . Recycling Unit Hacks 1 | . 1 . . Retrieve Components 1 | . 1 . . Scanalyzer 6 | . . 6 . Insert Component 3 | . . 3 . Analyze 3 | . . 3 . Garrison Access Hacks . | . . . . Unauthorized Hacks . | . . . . Terminals . | . . . . Fabricators . | . . . . Repair Stations . | . . . . Recycling Units . | . . . . Scanalyzers . | . . . . Garrison Access . | . . . . Data Cores Recovered 1 | . 1 . . Used . | . . . . Hacking Detections 3 | . 2 1 . Full Trace Events 1 | . . 1 . Feedback Events . | . . . . Feedback Blocked . | . . . . Robot Schematics Acquired . | . . . . Robots Built . | . . . . Authchips . | . . . . Time . | . . . . Total Robot Build Rating . | . . . . Part Schematics Acquired 2 | . . 2 . Parts Built . | . . . . Authchips . | . . . . Time . | . . . . Total Part Build Rating . | . . . . Parts Repaired 2 | . . 2 . Time 62 | . . 62 . Parts Recycled . | . . . . Recycled Matter . | . . . . Retrieved Matter . | . . . . Retrieved Components 2 | . 2 . . Parts Scanalyzed 3 | . . 3 . Part Schematics Acquired 2 | . . 2 . Parts Damaged . | . . . . Bothacking | -11 -10 -9 -9 ------------ Run | Yrd Mat Mat Sto Used RIF Installer . | . . . . Robots Hacked 1 | . 1 . . Non-combat 1 | . 1 . . Combat . | . . . . Robot Hacks Applied 1 | . 1 . . parse_system 1 | . 1 . . Relay Couplers Released . | . . . . Fabnet Peak Effective % . | . . . . Robots Rewired . | . . . . Allies Hacked . | . . . . Hacks Repelled . | . . . . Allies | -11 -10 -9 -9 -------- Run | Yrd Mat Mat Sto Total Allies 2 | . . . 2 Largest Group 2 | . . . 2 Highest-Rated Group 62 | . . . 62 Highest-Rated Ally 31 | . . . 31 Total Orders . | . . . . Ally Attacks 6 | . . . 6 Total Damage 123 | . . . 123 Kills 1 | . . . 1 Allies Corrupted 1 | . . . 1 Allies Melted . | . . . . Intel | -11 -10 -9 -9 ------- Run | Yrd Mat Mat Sto Robot Analysis Total . | . . . . Derelict Logs Recovered . | . . . . Drone Launches . | . . . . Drone Recoveries . | . . . . Exploration | -11 -10 -9 -9 ------------- Run | Yrd Mat Mat Sto Turns Passed 2388 | 78 1083 1121 106 Spaces Moved 757 | 48 407 282 20 Core 10 | 10 . . . Treads 487 | 38 380 68 1 Legs 260 | . 27 214 19 Wheels . | . . . . Hover . | . . . . Flight . | . . . . Fastest Speed 50 | 50 160 260 260 Average Speed 244 | 137 221 294 263 Slowest Speed 470 | 160 320 470 320 Overloaded Moves . | . . . . Propulsion Burnouts . | . . . . Robots Hopped . | . . . . Cave-ins Triggered . | . . . . Exploration Rate (%) 20 | 4 55 20 4 Regions Visited 3 Branch Regions 1 Pre-discovered Areas . | . . . . Known Exits Taken 1 | . . 1 . Unknown Exits Taken 2 | 1 1 . . Scrap Searched . | . . . . Spaces Dug 22 | . 22 . . Terrain Destroyed 118 | . 116 2 . Melee . | . . . . Projectile . | . . . . AOE 118 | . 116 2 . Terrain Rammed . | . . . . Walls Destroyed . | . . . . Machines Disabled . | . . . . Actions | -11 -10 -9 -9 --------- Run | Yrd Mat Mat Sto Total 1161 | 60 529 521 51 Wait 224 | . 47 176 1 Move 754 | 47 406 281 20 Hop . | . . . . Pick Up 38 | 9 11 15 3 Fast Attach . | . . . . Attach 28 | 4 7 9 8 Detach 3 | . . 2 1 Swap 8 | . 3 5 . Drop 3 | . . 1 2 Fire 100 | . 52 32 16 Melee 3 | . 3 . . Ram . | . . . . Kick . | . . . . Crush . | . . . . Escape Stasis . | . . . . Rewire . | . . . . Trap . | . . . . Miscellaneous . | . . . . Route ------- -11/Scrapyard -10/Materials (discovered 2 exits: *Mat x2) -9/Materials -9/Storage History --------- Turn | Location | Event 5 | -11/Scrapyard | Discovered new exit (range 15) 79 | -11/Scrapyard | Entered Materials 310 | -10/Materials | Build established: Mutant 452 | -10/Materials | Discovered new exit (range 14) 937 | -10/Materials | Discovered new exit (range 11) 1124 | -10/Materials | Lost 3 parts (2n1w) 1162 | -10/Materials | Entered another Materials area 1162 | -9/Materials | Evolved 2 slots: Utility x2 1550 | -9/Materials | Lost 4 parts (1n1u2w) 1707 | -9/Materials | Repaired Aluminum Leg 1744 | -9/Materials | Repaired Corrupted Lgt. Treads 2186 | -9/Materials | Discovered new exit (range 12) 2280 | -9/Materials | Identified exit to Storage 2283 | -9/Materials | Entered Storage 2307 | -9/Storage | Met a pair of Derelict thieves 2312 | -9/Storage | Lost 5 parts (1p1n1u2w) 2341 | -9/Storage | Garrison activated, responded to threat 2369 | -9/Storage | Core integrity fell below 50% 2385 | -9/Storage | Core integrity fell below 20% 2389 | -9/Storage | Destroyed by G-34 Mercenary with Small Laser Last Messages --------------- 02356_ Acquired Imp. Light Cannon. 02360_ B-36 Bruiser Hammer blasted off. 02360_ B-36 Bruiser destroyed. 02363_ Aluminum Leg destroyed. 02368_ G-34 Mercenary knocked back. 02370_ Aluminum Leg destroyed. 02371_ Imp. Light Cannon destroyed. 02373_ Hacking Suite destroyed. 02374_ M-13 Machinist repairs G-34 Mercenary. 02375_ Imp. Light Cannon destroyed. 02375_ M-13 Machinist repairs Sml. Laser. 02379_ G-34 Mercenary destroyed. 02379_ Y-45 Defender suffers critical hit (Burn). 02380_ M-13 Machinist repairs Y-45 Defender. 02381_ Critical hit (Burn: +37). 02383_ HNZQXK&FJ7AC MUJH5RVEO>NMDHBX=MXLB6UG% 02383_ Critical hit (Burn: +37). 02385_ M-13 Machinist repairs I-25 Savior. 02387_ Lgt. Treads destroyed. Map ----- +----------------------------------------------------+ | ???????????????????????????? | | ???????????????????????????? | | ???????????????????????????? | | ???????????????????????????? | | ???????????????????????????? | | ???????????????????????????? | | ???????????????????????????? | | ????#??????????????????????? | | ?????????? ?#????????????? | | ?????????# #?????????????? | | ?????????# #?????????????? | | ?????????# #?????????????? | | ?????????+ #?????????????? | | ?????????# #?????????????? | | ?? ???"??# #?????? ??????? | | ???????"?# #?????????????? | | ???? ????# #????? ???????? | | ?????????# #???#?????????? | | ???#?????# #????????#????? | | ?######### #?????????????? | | ?#[[ !#%=# #?????????????? | | ?# []m" # #????? ???????? | | ##[i/g%[ + +???? ????????? | | ?#g Y%" # #???"?????????? | | ?#gYg/#T## #?????????????? | | ?#]@ %#### #? ???????????? | | ?######??# =!#?????????????? | | ?????????# #???##????????? | | ?????????#####?????????????? | | ??#??#??????#???#??????????? | | ?????#?????????????????????? | | ???????????????????????????? | | ???????????????????????????? | | ???????????????????????????? | | ????#?#????????????????????? | | ?????#??????#?#????????????? | | ????????????#?#????????????? | | ???????????????????????????? | | ???????????????????????????? | | ???????????????????????????? | | ???????????????????????????? | | | | | | | | | | | | | | | | | | | +----------------------------------------------------+ Best States ------------- Heat Dissipation 28 Energy Generation 14 Energy Capacity 160 Matter Stores 400 Matter Capacity 400 Sight Range 16 Terrain Scan Range 16 Terrain Scan Density 10 Armor Coverage 225 Evasion (%) 50 Recoil Reduction 2 Offensive Hacking 10 Item Schematics ----------------- Recalibrator | -9/Materials | Scanalyzed Datajack | -9/Materials | Scanalyzed Robot Schematics ------------------ None Fabricated ------------ Nothing Alien Tech Used ----------------- None Achievements -------------- None Challenges ------------ None Game ------ Seed SurgeDeepSaw Manual? 0 Play Time 00:35:57 Cumulative 22.5 hours Start 2024.04.14 @ 21:34:53 End 2024.04.15 @ 21:29:41 Sessions 3 Manual Loads 0 Difficulty Rogue Special Mode None Game No. 45 Rogue 45 Adventurer 0 Explorer 0 Win Type - Total 0 Types 0/0/0/0/0/0/0/0/0 Lore% 18 Gallery% 23 Achievement% 19 Wizard Run 0 Options --------- Layout 1 ASCII 0 Keyboard 1 Movement Numpad Keybinds 0 Fullscreen 1 Font 24/Smallcaps Map View 50x35 Zoom Use 0% Tactical HUD 1 Map Filters NONE Filters NONE Steam 1 RUN: 929e0441-b35e-46fc-a11d-4556d2bf2fbe